[Event "SixDays Budapest IM-B 09-2024"]
[Site "Budapest"]
[Date "2024.09.26"]
[Round "5.1"]
[White "Valkova, Angelika"]
[Black "Li, Xueyi"]
[Result "1/2-1/2"]
[ECO "D30"]
[WhiteElo "2068"]
[BlackElo "2187"]
[Annotator "RC"]
[PlyCount "157"]
[EventDate "2024.09.24"]
[EventType "tourn"]
[EventCountry "HUN"]
[SourceTitle "playchess.com"]
[Source "ChessBase"]
[SourceQuality "1"]
[TimeControl "5400+30"]

1. d4 {[%emt 0:00:03]} d5 {[%emt 0:00:36]} 2. c4 {[%emt 0:00:06]} e6 {[%emt 0:00:05]} 3. cxd5 {[%emt 0:00:08]} exd5 {[%emt 0:00:04]} 4. Nc3 {[%emt 0:00:06]} c6 {[%emt 0:00:11]} 5. Bf4 {[%emt 0:00:08]} Bd6 {[%emt 0:02:25]} 6. Bxd6 {[%emt 0:00:07]} Qxd6 {[%emt 0:00:03]} 7. Qb3 {[%emt 0:00:11]} Nf6 {[%emt 0:01:22]} 8. e3 {[%emt 0:00:12]} O-O {[%emt 0:00:49]} 9. Bd3 {[%emt 0:00:06]} Nbd7 {[%emt 0:01:21]} 10. Nf3 {[%emt 0:00:45]} c5 {[%emt 0:04:41]} 11. Qa3 {[%emt 0:04:50]} Qb6 {[%emt 0:06:56]} 12. O-O {[%emt 0:03:08]} cxd4 {[%emt 0:03:56]} 13. exd4 {[%emt 0:01:21]} Rd8 {[%emt 0:01:37]} 14. Na4 {[%emt 0:02:57]} Qa5 {[%emt 0:04:58]} 15. b4 {[%emt 0:02:54]} Qc7 {[%emt 0:00:08]} 16. b5 {[%emt 0:02:31]} Nf8 {[%emt 0:02:20]} 17. Rac1 {[%emt 0:01:21]} Qd6 {[%emt 0:11:40]} 18. Qxd6 {[%emt 0:01:38]} Rxd6 {[%emt 0:00:02]} 19. Rfe1 {[%emt 0:04:54]} Bg4 {[%emt 0:04:21]} 20. Ne5 {[%emt 0:05:40]} Bd7 {[%emt 0:05:01]} 21. Nxd7 {[%emt 0:08:36]} Rxd7 {[%emt 0:01:23]} 22. Bf5 {[%emt 0:00:25]} Rdd8 {[%emt 0:01:44]} 23. Rc7 {[%emt 0:01:12]} g6 {[%emt 0:01:43]} 24. Bd3 {[%emt 0:02:15]} Rd7 {[%emt 0:02:59]} 25. Re7 {[%emt 0:03:04]} Rxe7 {[%emt 0:05:00]} 26. Rxe7 {[%emt 0:00:07]} b6 {[%emt 0:00:05]} 27. Nc3 {[%emt 0:04:27]} Ne6 {[%emt 0:01:39]} 28. Ne2 {[%emt 0:00:58]} Kf8 {[%emt 0:00:06]} 29. Rb7 {[%emt 0:00:05]} Ke8 {[%emt 0:00:18]} 30. f4 {[%emt 0:01:22]} Nd7 {[%emt 0:00:58]} 31. f5 {[%emt 0:03:45]} gxf5 {[%emt 0:00:39]} 32. Ng3 {[%emt 0:00:20]} Nxd4 {[%emt 0:01:48]} 33. Nxf5 {[%emt 0:02:32]} Nxf5 {[%emt 0:00:24]} 34. Bxf5 {[%emt 0:00:07]} Nc5 {[%emt 0:00:20]} 35. Rc7 {[%emt 0:00:10]} d4 {[%emt 0:04:31]} 36. Kf1 {[%emt 0:01:30]} d3 {[%emt 0:01:43]} 37. Ke1 {[%emt 0:01:20]} a6 {[%emt 0:03:36]} 38. Rc6 {[%emt 0:13:08]} axb5 {[%emt 0:01:54]} 39. Rxb6 {[%emt 0:00:06]} Rxa2 {[%emt 0:00:24]} 40. Rxb5 {[%emt 0:00:08]} Re2+ {[%emt 0:02:56]} 41. Kd1 {[%emt 0:01:03]} Na4 {[%emt 0:02:57]} 42. Rb8+ {[%emt 0:01:43]} Ke7 {[%emt 0:00:10]} 43. Bxd3 {[%emt 0:00:34]} Nc3+ {[%emt 0:00:09]} 44. Kc1 {[%emt 0:00:07]} Rxg2 {[%emt 0:00:09]} 45. Bxh7 {[%emt 0:08:00]} Rxh2 {[%emt 0:00:09]} 46. Rb7+ {[%emt 0:00:53]} Kf8 {[%emt 0:01:33]} 47. Bd3 {[%emt 0:00:58]} Ne2+ {[%emt 0:00:32]} 48. Kd1 {[%emt 0:01:12]} Nd4 {[%emt 0:01:05]} 49. Bc4 {[%emt 0:00:28]} Rh1+ {[%emt 0:00:13]} 50. Kd2 {[%emt 0:00:10]} Nf3+ {[%emt 0:00:14]} 51. Ke3 {[%emt 0:00:28]} Ne5 {[%emt 0:00:06]} 52. Bd5 {[%emt 0:00:51]} Rh4 {[%emt 0:00:55]} 53. Ra7 {[%emt 0:00:54]} Kg7 {[%emt 0:00:38]} 54. Re7 {[%emt 0:02:01]} Kf6 {[%emt 0:00:38]} 55. Ra7 {[%emt 0:00:17]} Kg6 {[%emt 0:04:02]} 56. Re7 {[%emt 0:01:23]} Ng4+ {[%emt 0:00:11]} 57. Kf3 {[%emt 0:00:34]} Nh6 {[%emt 0:00:08]} 58. Be4+ {[%emt 0:03:15]} f5 {[%emt 0:00:53]} 59. Bd5 {[%emt 0:03:46]} Ra4 {[%emt 0:01:44]} 60. Rb7 {[%emt 0:01:02]} Ng4 {[%emt 0:00:32]} 61. Rb8 {[%emt 0:01:46]} Nf6 {[%emt 0:01:41]} 62. Be6 {[%emt 0:01:31]} Ra6 {[%emt 0:00:49]} 63. Bc4 {[%emt 0:01:10]} Rc6 {[%emt 0:00:48]} 64. Bd3 {[%emt 0:01:49]} Rc5 {[%emt 0:00:50]} 65. Rb5 {[%emt 0:00:58]} Rxb5 66. Bxb5 {[%emt 0:00:05]} Kg5 {[%emt 0:01:57]} 67. Bc6 {[%emt 0:00:19]} Ng4 {[%emt 0:00:16]} 68. Kg2 {[%emt 0:00:17]} Ne5 {[%emt 0:00:10]} 69. Bb7 {[%emt 0:00:25]} f4 {[%emt 0:00:13]} 70. Be4 {[%emt 0:00:30]} Nc4 {[%emt 0:02:12]} 71. Bb7 {[%emt 0:01:05]} Kf5 {[%emt 0:00:22]} 72. Kf3 {[%emt 0:00:19]} Nd6 {[%emt 0:00:28]} 73. Bd5 {[%emt 0:00:36]} Ke5 {[%emt 0:00:05]} 74. Bc6 {[%emt 0:01:00]} Nf5 {[%emt 0:00:49]} 75. Kg4 {[%emt 0:00:47]} Ne3+ {[%emt 0:00:38]} 76. Kf3 {[%emt 0:00:19]} Nc2 {[%emt 0:00:49]} 77. Kf2 {[%emt 0:00:34]} Nb4 {[%emt 0:00:11]} 78. Bb7 {[%emt 0:00:25]} Nd5 {[%emt 0:01:11]} 79. Bxd5 {[%emt 0:00:06]} 1/2-1/2

[Event "SixDays Budapest IM-B 09-2024"]
[Site "Budapest"]
[Date "2024.09.26"]
[Round "5.2"]
[White "Pribelszky, Bence Daniel"]
[Black "Nanditha V"]
[Result "1-0"]
[ECO "A01"]
[WhiteElo "2408"]
[BlackElo "1903"]
[Annotator "RC"]
[PlyCount "115"]
[EventDate "2024.09.24"]
[EventType "tourn"]
[EventCountry "HUN"]
[SourceTitle "playchess.com"]
[Source "ChessBase"]
[SourceQuality "1"]
[TimeControl "5400+30"]

1. b3 {[%emt 0:00:05]} Nf6 {[%emt 0:00:40]} 2. Bb2 {[%emt 0:00:12]} g6 {[%emt 0:00:11]} 3. e4 {[%emt 0:00:38]} d6 {[%emt 0:02:31]} 4. g3 {[%emt 0:00:11]} Bg7 {[%emt 0:00:23]} 5. Bg2 {[%emt 0:00:06]} O-O {[%emt 0:00:48]} 6. Ne2 {[%emt 0:00:08]} e5 {[%emt 0:00:59]} 7. O-O {[%emt 0:00:10]} a5 {[%emt 0:01:00]} 8. Nbc3 {[%emt 0:07:20]} Nc6 {[%emt 0:01:30]} 9. f4 {[%emt 0:04:07]} Bg4 {[%emt 0:01:29]} 10. h3 {[%emt 0:02:23]} Bxe2 {[%emt 0:02:05]} 11. Nxe2 {[%emt 0:00:03]} Qe7 {[%emt 0:04:29]} 12. f5 {[%emt 0:02:25]} g5 {[%emt 0:00:25]} 13. d3 {[%emt 0:01:57]} h6 {[%emt 0:00:23]} 14. a3 {[%emt 0:03:22]} Nd7 {[%emt 0:02:28]} 15. c3 {[%emt 0:02:17]} b5 {[%emt 0:00:40]} 16. d4 {[%emt 0:03:05]} Rfb8 {[%emt 0:00:58]} 17. d5 {[%emt 0:01:34]} Nd8 {[%emt 0:00:34]} 18. Bc1 {[%emt 0:05:10]} Nb7 {[%emt 0:01:01]} 19. Be3 {[%emt 0:00:38]} Nbc5 {[%emt 0:00:28]} 20. Rf2 {[%emt 0:04:31]} Bf6 {[%emt 0:00:37]} 21. Nc1 {[%emt 0:06:37]} Kg7 {[%emt 0:01:01]} 22. Qh5 {[%emt 0:01:15]} Rh8 {[%emt 0:04:11]} 23. Rc2 {[%emt 0:04:09]} Nb6 {[%emt 0:04:12]} 24. Bf2 {[%emt 0:06:13]} Qd7 {[%emt 0:11:44]} 25. Qe2 {[%emt 0:01:57]} Rhb8 {[%emt 0:03:02]} 26. Bf1 {[%emt 0:03:51]} Qe7 {[%emt 0:02:57]} 27. b4 {[%emt 0:01:49]} axb4 {[%emt 0:05:31]} 28. cxb4 {[%emt 0:00:07]} Na6 {[%emt 0:01:37]} 29. Qe1 {[%emt 0:04:58]} Na4 {[%emt 0:03:37]} 30. Nb3 {[%emt 0:00:23]} c5 {[%emt 0:02:16]} 31. dxc6 {[%emt 0:00:49]} Nc7 {[%emt 0:01:11]} 32. Rd1 {[%emt 0:00:48]} Qf8 {[%emt 0:00:23]} 33. Na5 {[%emt 0:00:39]} Nb6 {[%emt 0:01:20]} 34. Rcd2 {[%emt 0:02:09]} Nc8 {[%emt 0:01:48]} 35. Be2 {[%emt 0:01:06]} Bd8 {[%emt 0:02:04]} 36. Qf1 {[%emt 0:02:35]} Be7 {[%emt 0:03:59]} 37. Rc1 {[%emt 0:02:43]} Kf6 {[%emt 0:02:34]} 38. Rc3 {[%emt 0:00:20]} d5 {[%emt 0:05:27]} 39. exd5 {[%emt 0:01:30]} Nd6 {[%emt 0:00:04]} 40. Qb1 {[%emt 0:01:07]} Qc8 {[%emt 0:00:27]} 41. Bc5 {[%emt 0:01:07]} Qf8 {[%emt 0:03:05]} 42. Kg2 {[%emt 0:01:22]} Na6 {[%emt 0:01:55]} 43. Nb7 {[%emt 0:01:15]} Nc7 {[%emt 0:03:18]} 44. Bxd6 {[%emt 0:00:47]} Bxd6 {[%emt 0:00:12]} 45. Nc5 {[%emt 0:00:05]} Kg7 {[%emt 0:01:02]} 46. Nd7 {[%emt 0:00:23]} Qe8 {[%emt 0:00:26]} 47. f6+ {[%emt 0:00:21]} Kh8 {[%emt 0:00:50]} 48. Nxb8 {[%emt 0:00:42]} Rxb8 {[%emt 0:00:18]} 49. Qe4 {[%emt 0:00:06]} Qg8 {[%emt 0:00:38]} 50. Bd3 {[%emt 0:00:55]} Ne8 {[%emt 0:00:59]} 51. Qf3 {[%emt 0:00:35]} Bc7 {[%emt 0:00:00]} 52. Re2 {[%emt 0:02:27]} Rd8 {[%emt 0:02:26]} 53. Bxb5 {[%emt 0:00:25]} e4 {[%emt 0:00:22]} 54. Qxe4 {[%emt 0:00:56]} Nxf6 {[%emt 0:00:32]} 55. Qd4 {[%emt 0:00:21]} Qg7 {[%emt 0:00:45]} 56. Rf3 {[%emt 0:00:13]} Rd6 {[%emt 0:04:25]} 57. Bd3 {[%emt 0:00:49]} Rxd5 {[%emt 0:00:57]} 58. Qxd5 {[%emt 0:00:23]} 1-0

[Event "SixDays Budapest IM-B 09-2024"]
[Site "Budapest"]
[Date "2024.09.26"]
[Round "5.3"]
[White "Tippa, Aswath Srisai"]
[Black "Nissinen, Niilo Man"]
[Result "1-0"]
[ECO "E01"]
[WhiteElo "1648"]
[BlackElo "2159"]
[Annotator "RC"]
[PlyCount "57"]
[EventDate "2024.09.24"]
[EventType "tourn"]
[EventCountry "HUN"]
[SourceTitle "playchess.com"]
[Source "ChessBase"]
[SourceQuality "1"]
[TimeControl "5400+30"]

1. d4 {[%emt 0:03:04]} Nf6 {[%emt 0:00:07]} 2. c4 {[%emt 0:00:16]} e6 {[%emt 0:00:10]} 3. g3 {[%emt 0:00:52]} d5 {[%emt 0:00:14]} 4. Bg2 {[%emt 0:00:15]} Bb4+ {[%emt 0:00:15]} 5. Bd2 {[%emt 0:00:22]} Be7 {[%emt 0:00:18]} 6. Nf3 {[%emt 0:00:12]} O-O {[%emt 0:00:15]} 7. O-O {[%emt 0:00:17]} c6 {[%emt 0:00:25]} 8. Bc3 {[%emt 0:00:32]} Ne4 {[%emt 0:00:52]} 9. a4 {[%emt 0:00:54]} a5 {[%emt 0:03:41]} 10. Nbd2 {[%emt 0:01:25]} f5 {[%emt 0:06:22]} 11. Nxe4 {[%emt 0:01:50]} fxe4 {[%emt 0:00:37]} 12. Nd2 {[%emt 0:00:39]} Bf6 {[%emt 0:26:55]} 13. e3 {[%emt 0:00:50]} Nd7 {[%emt 0:11:35]} 14. f3 {[%emt 0:01:01]} exf3 {[%emt 0:00:46]} 15. Bxf3 {[%emt 0:02:04]} Qb6 {[%emt 0:02:09]} 16. Qe2 {[%emt 0:05:14]} c5 {[%emt 0:04:37]} 17. cxd5 {[%emt 0:03:31]} cxd4 {[%emt 0:01:15]} 18. Nc4 {[%emt 0:00:59]} Qc5 {[%emt 0:01:28]} 19. exd4 {[%emt 0:00:42]} Bxd4+ {[%emt 0:00:32]} 20. Bxd4 {[%emt 0:00:50]} Qxd4+ {[%emt 0:00:08]} 21. Kh1 {[%emt 0:01:12]} exd5 {[%emt 0:04:54]} 22. Rad1 {[%emt 0:00:17]} Qc5 {[%emt 0:04:29]} 23. Bxd5+ {[%emt 0:01:47]} Kh8 {[%emt 0:00:11]} 24. Rxf8+ {[%emt 0:00:31]} Nxf8 {[%emt 0:09:39]} 25. Ne5 {[%emt 0:01:42]} h6 {[%emt 0:01:13]} 26. Nf7+ {[%emt 0:01:40]} Kh7 {[%emt 0:00:17]} 27. Qe4+ {[%emt 0:00:26]} Ng6 {[%emt 0:02:55]} 28. Ne5 {[%emt 0:00:23]} Ra6 {[%emt 0:00:26]} 29. Bf7 {[%emt 0:00:12]} 1-0

[Event "SixDays Budapest IM-B 09-2024"]
[Site "Budapest"]
[Date "2024.09.26"]
[Round "5.4"]
[White "Rodgers, Jack"]
[Black "Polyik, Peter"]
[Result "1-0"]
[ECO "A45"]
[WhiteElo "2110"]
[BlackElo "2304"]
[Annotator "RC"]
[PlyCount "123"]
[EventDate "2024.09.24"]
[EventType "tourn"]
[EventCountry "HUN"]
[SourceTitle "playchess.com"]
[Source "ChessBase"]
[SourceQuality "1"]
[TimeControl "5400+30"]

1. d4 {[%emt 0:00:03]} Nf6 {[%emt 0:02:49]} 2. Bg5 {[%emt 0:00:06]} d5 {[%emt 0:00:05]} 3. Bxf6 {[%emt 0:00:22]} gxf6 {[%emt 0:00:05]} 4. e3 {[%emt 0:00:26]} c5 {[%emt 0:00:26]} 5. dxc5 {[%emt 0:00:29]} Nc6 {[%emt 0:00:47]} 6. a3 {[%emt 0:01:04]} e6 {[%emt 0:04:32]} 7. c4 {[%emt 0:11:07]} d4 {[%emt 0:09:08]} 8. exd4 {[%emt 0:01:15]} Qxd4 {[%emt 0:00:23]} 9. Nc3 {[%emt 0:03:19]} Qe5+ {[%emt 0:18:08]} 10. Qe2 {[%emt 0:04:27]} Bxc5 {[%emt 0:01:37]} 11. Nf3 {[%emt 0:00:45]} Qxe2+ {[%emt 0:07:27]} 12. Bxe2 {[%emt 0:00:14]} Nd4 {[%emt 0:02:04]} 13. Rd1 {[%emt 0:03:53]} Nxe2 {[%emt 0:05:53]} 14. Kxe2 {[%emt 0:00:28]} Ke7 {[%emt 0:11:53]} 15. Ne4 {[%emt 0:01:40]} b6 {[%emt 0:01:09]} 16. b4 {[%emt 0:13:14]} Bb7 {[%emt 0:01:29]} 17. Nxc5 {[%emt 0:02:36]} bxc5 {[%emt 0:00:07]} 18. Rb1 {[%emt 0:13:04]} Rhg8 {[%emt 0:03:41]} 19. g3 {[%emt 0:04:32]} Rg4 {[%emt 0:00:58]} 20. Rhc1 {[%emt 0:00:25]} Re4+ {[%emt 0:03:21]} 21. Kf1 {[%emt 0:00:21]} Rd8 {[%emt 0:00:06]} 22. Rc3 {[%emt 0:00:33]} e5 {[%emt 0:01:10]} 23. Re1 {[%emt 0:03:55]} Ke6 {[%emt 0:13:01]} 24. b5 {[%emt 0:01:10]} Rxe1+ {[%emt 0:01:11]} 25. Kxe1 {[%emt 0:03:00]} Bxf3 {[%emt 0:00:34]} 26. Rxf3 {[%emt 0:00:02]} e4 {[%emt 0:00:07]} 27. Rb3 {[%emt 0:02:15]} Ke5 {[%emt 0:04:06]} 28. a4 {[%emt 0:01:49]} Kd4 {[%emt 0:00:46]} 29. a5 {[%emt 0:00:34]} Kxc4 {[%emt 0:00:05]} 30. Rb1 {[%emt 0:00:13]} Kc3 {[%emt 0:04:41]} 31. b6 {[%emt 0:00:28]} axb6 {[%emt 0:00:04]} 32. axb6 {[%emt 0:00:30]} Rb8 {[%emt 0:00:54]} 33. b7 {[%emt 0:01:11]} Kd4 {[%emt 0:00:14]} 34. Kd2 {[%emt 0:02:58]} f5 {[%emt 0:01:08]} 35. Kc2 {[%emt 0:00:55]} Kd5 {[%emt 0:00:13]} 36. Kc3 {[%emt 0:00:13]} Kc6 {[%emt 0:02:39]} 37. Kc4 {[%emt 0:00:09]} Rxb7 {[%emt 0:00:50]} 38. Rxb7 {[%emt 0:00:06]} Kxb7 {[%emt 0:00:03]} 39. Kxc5 {[%emt 0:00:08]} f4 {[%emt 0:00:43]} 40. gxf4 {[%emt 0:01:13]} Kc7 {[%emt 0:00:15]} 41. Kd5 {[%emt 0:01:51]} Kd7 {[%emt 0:00:10]} 42. Ke5 {[%emt 0:01:25]} Ke7 {[%emt 0:00:39]} 43. h3 {[%emt 0:03:30]} f6+ {[%emt 0:00:14]} 44. Kd5 {[%emt 0:01:23]} Kd7 {[%emt 0:01:39]} 45. f5 {[%emt 0:01:49]} h6 {[%emt 0:00:20]} 46. Kxe4 {[%emt 0:02:20]} Kd6 {[%emt 0:00:05]} 47. Kf4 {[%emt 0:02:03]} Ke7 {[%emt 0:00:08]} 48. f3 {[%emt 0:01:32]} Kd6 {[%emt 0:01:44]} 49. Kg4 {[%emt 0:00:39]} Ke5 {[%emt 0:00:04]} 50. Kh5 {[%emt 0:00:13]} Kxf5 {[%emt 0:00:05]} 51. Kxh6 {[%emt 0:00:24]} Kf4 {[%emt 0:00:03]} 52. h4 {[%emt 0:00:18]} Kxf3 {[%emt 0:00:06]} 53. Kg6 {[%emt 0:01:01]} Kg4 {[%emt 0:00:04]} 54. h5 {[%emt 0:00:04]} f5 {[%emt 0:00:03]} 55. h6 {[%emt 0:00:07]} f4 {[%emt 0:00:05]} 56. h7 {[%emt 0:00:03]} f3 {[%emt 0:00:27]} 57. h8=Q {[%emt 0:00:07]} Kg3 {[%emt 0:00:04]} 58. Qh1 {[%emt 0:00:14]} Kf2 {[%emt 0:00:04]} 59. Kf5 {[%emt 0:00:26]} Ke2 {[%emt 0:00:04]} 60. Ke4 {[%emt 0:00:59]} f2 {[%emt 0:00:03]} 61. Qf3+ {[%emt 0:00:46]} Ke1 {[%emt 0:00:05]} 62. Qe3+ {[%emt 0:00:33]} 1-0

[Event "SixDays Budapest IM-B 09-2024"]
[Site "Budapest"]
[Date "2024.09.26"]
[Round "5.5"]
[White "Goldbeck, Lars"]
[Black "Skytte, Rasmus"]
[Result "1/2-1/2"]
[ECO "D32"]
[WhiteElo "2359"]
[BlackElo "2348"]
[Annotator "RC"]
[PlyCount "47"]
[EventDate "2024.09.24"]
[EventType "tourn"]
[EventCountry "HUN"]
[SourceTitle "playchess.com"]
[Source "ChessBase"]
[SourceQuality "1"]
[TimeControl "5400+30"]

1. d4 {[%emt 0:00:03]} d5 {[%emt 0:00:09]} 2. c4 {[%emt 0:00:04]} e6 {[%emt 0:00:06]} 3. Nc3 {[%emt 0:00:09]} c5 {[%emt 0:00:06]} 4. cxd5 {[%emt 0:00:05]} cxd4 {[%emt 0:00:09]} 5. Qa4+ {[%emt 0:00:52]} Bd7 {[%emt 0:00:20]} 6. Qxd4 {[%emt 0:00:03]} exd5 {[%emt 0:00:19]} 7. Qxd5 {[%emt 0:01:29]} Nf6 {[%emt 0:00:17]} 8. Qd1 {[%emt 0:01:01]} Bc5 {[%emt 0:00:38]} 9. Nf3 {[%emt 0:01:54]} O-O {[%emt 0:00:27]} 10. e3 {[%emt 0:01:27]} Nc6 {[%emt 0:00:48]} 11. Be2 {[%emt 0:04:09]} Qe7 {[%emt 0:00:26]} 12. O-O {[%emt 0:05:53]} Ne5 {[%emt 0:01:13]} 13. Nd4 {[%emt 0:19:02]} Rfd8 {[%emt 0:00:38]} 14. Bd2 {[%emt 0:05:10]} Nc6 {[%emt 0:01:28]} 15. Nb3 {[%emt 0:02:28]} Bb6 {[%emt 0:01:16]} 16. Nb5 {[%emt 0:03:39]} Bf5 {[%emt 0:01:23]} 17. Qe1 {[%emt 0:02:38]} a6 {[%emt 0:03:40]} 18. N5d4 {[%emt 0:01:57]} Nxd4 {[%emt 0:02:59]} 19. Nxd4 {[%emt 0:00:09]} Bxd4 {[%emt 0:00:24]} 20. exd4 {[%emt 0:00:03]} Rxd4 {[%emt 0:01:01]} 21. Bf3 {[%emt 0:02:17]} Qxe1 {[%emt 0:02:14]} 22. Bxe1 {[%emt 0:00:58]} Ne4 {[%emt 0:01:32]} 23. Rc1 {[%emt 0:05:17]} Re8 {[%emt 0:00:57]} 24. Bxe4 {[%emt 0:05:44]} 1/2-1/2

[Event "SixDays Budapest IM-B 09-2024"]
[Site "Budapest"]
[Date "2024.09.28"]
[Round "7.1"]
[White "Valkova, Angelika"]
[Black "Nanditha V"]
[Result "1-0"]
[ECO "E71"]
[WhiteElo "2068"]
[BlackElo "1903"]
[Annotator "ChessBase"]
[PlyCount "65"]
[EventDate "2024.09.24"]
[EventType "tourn"]
[EventCountry "HUN"]
[SourceTitle "playchess.com"]
[Source "ChessBase"]
[SourceQuality "1"]
[TimeControl "5400+30"]

1. d4 {[%emt 0:03:53]} Nf6 {[%emt 0:00:45]} 2. c4 {[%emt 0:00:05]} g6 {[%emt 0:01:30]} 3. Nc3 {[%emt 0:00:05]} Bg7 {[%emt 0:01:12]} 4. e4 {[%emt 0:00:07]} d6 {[%emt 0:00:58]} 5. h3 {[%emt 0:00:07]} O-O {[%emt 0:00:43]} 6. Be3 {[%emt 0:00:05]} Nbd7 {[%emt 0:01:48]} 7. Qd2 {[%emt 0:00:27]} e5 {[%emt 0:06:06]} 8. d5 {[%emt 0:00:28]} a6 {[%emt 0:14:40]} 9. g4 {[%emt 0:00:07]} Nc5 {[%emt 0:03:23]} 10. f3 {[%emt 0:00:30]} b5 {[%emt 0:00:30]} 11. b4 {[%emt 0:11:03]} Na4 {[%emt 0:06:09]} 12. Nxa4 {[%emt 0:09:33]} bxa4 {[%emt 0:00:10]} 13. c5 {[%emt 0:00:57]} Ne8 {[%emt 0:04:32]} 14. h4 {[%emt 0:07:34]} f5 {[%emt 0:03:36]} 15. gxf5 {[%emt 0:00:07]} gxf5 {[%emt 0:00:19]} 16. Ne2 {[%emt 0:08:01]} fxe4 {[%emt 0:05:02]} 17. fxe4 {[%emt 0:00:08]} Nf6 {[%emt 0:03:30]} 18. Ng3 {[%emt 0:04:27]} Bg4 {[%emt 0:12:04]} 19. h5 {[%emt 0:09:25]} Rf7 {[%emt 0:05:37]} 20. c6 {[%emt 0:05:09]} Bf3 {[%emt 0:05:08]} 21. Bg2 {[%emt 0:01:52]} Ng4 {[%emt 0:02:20]} 22. Bg5 {[%emt 0:11:41]} Bf6 {[%emt 0:07:49]} 23. Bxf6 {[%emt 0:00:05]} Qxf6 {[%emt 0:00:48]} 24. Nf5 {[%emt 0:00:10]} Bxg2 {[%emt 0:02:52]} 25. Qxg2 {[%emt 0:00:05]} Qg5 {[%emt 0:00:03]} 26. Qxg4 {[%emt 0:02:13]} Qxg4 {[%emt 0:01:08]} 27. Nh6+ {[%emt 0:00:05]} Kh8 {[%emt 0:00:07]} 28. Nxg4 {[%emt 0:00:05]} Raf8 {[%emt 0:00:15]} 29. Ne3 {[%emt 0:03:45]} Rf3 {[%emt 0:01:02]} 30. Ke2 {[%emt 0:01:06]} Rf2+ {[%emt 0:00:08]} 31. Kd3 {[%emt 0:00:20]} Rb2 {[%emt 0:00:40]} 32. Rhf1 {[%emt 0:01:08]} Rb8 {[%emt 0:02:22]} 33. Nc2 {[%emt 0:00:41]} 1-0

[Event "SixDays Budapest IM-B 09-2024"]
[Site "Budapest"]
[Date "2024.09.28"]
[Round "7.2"]
[White "Tippa, Aswath Srisai"]
[Black "Pribelszky, Bence Daniel"]
[Result "1/2-1/2"]
[ECO "C01"]
[WhiteElo "1648"]
[BlackElo "2408"]
[Annotator "ChessBase"]
[PlyCount "115"]
[EventDate "2024.09.24"]
[EventType "tourn"]
[EventCountry "HUN"]
[SourceTitle "playchess.com"]
[Source "ChessBase"]
[SourceQuality "1"]
[TimeControl "5400+30"]

1. e4 {[%emt 0:07:43]} e6 {[%emt 0:00:08]} 2. d4 {[%emt 0:00:40]} d5 {[%emt 0:00:05]} 3. exd5 {[%emt 0:01:04]} exd5 {[%emt 0:00:08]} 4. Bf4 {[%emt 0:00:09]} Bd6 {[%emt 0:02:00]} 5. Qd2 {[%emt 0:00:11]} Ne7 {[%emt 0:05:13]} 6. Nc3 {[%emt 0:00:13]} c6 {[%emt 0:00:47]} 7. O-O-O {[%emt 0:00:23]} O-O {[%emt 0:00:30]} 8. h4 {[%emt 0:03:19]} b5 {[%emt 0:03:18]} 9. h5 {[%emt 0:01:10]} a5 {[%emt 0:03:18]} 10. h6 {[%emt 0:06:08]} g6 {[%emt 0:00:14]} 11. Nge2 {[%emt 0:00:39]} Na6 {[%emt 0:19:46]} 12. Bxd6 {[%emt 0:07:09]} Qxd6 {[%emt 0:00:07]} 13. Qf4 {[%emt 0:01:00]} Qxf4+ {[%emt 0:04:15]} 14. Nxf4 {[%emt 0:00:10]} f6 {[%emt 0:01:31]} 15. a4 {[%emt 0:05:23]} b4 {[%emt 0:00:50]} 16. Nb1 {[%emt 0:04:42]} Nf5 {[%emt 0:06:12]} 17. Bxa6 {[%emt 0:04:33]} Rxa6 {[%emt 0:03:10]} 18. g4 {[%emt 0:02:57]} Nd6 {[%emt 0:01:03]} 19. f3 {[%emt 0:00:11]} Ra7 {[%emt 0:20:33]} 20. Rde1 {[%emt 0:01:26]} Kf7 {[%emt 0:01:15]} 21. Nd2 {[%emt 0:02:10]} Re8 {[%emt 0:00:43]} 22. Rxe8 {[%emt 0:10:41]} Nxe8 {[%emt 0:00:08]} 23. Nd3 {[%emt 0:08:44]} Nd6 {[%emt 0:00:43]} 24. Re1 {[%emt 0:06:20]} g5 {[%emt 0:07:29]} 25. Nc5 {[%emt 0:06:35]} Kg6 {[%emt 0:12:51]} 26. Ne6 {[%emt 0:00:33]} Re7 {[%emt 0:00:19]} 27. Nf4+ {[%emt 0:07:27]} Kf7 {[%emt 0:00:03]} 28. Rxe7+ {[%emt 0:00:07]} Kxe7 {[%emt 0:00:05]} 29. Nd3 {[%emt 0:02:54]} Ba6 {[%emt 0:00:25]} 30. Nc5 {[%emt 0:01:30]} Be2 {[%emt 0:00:09]} 31. c3 {[%emt 0:02:01]} bxc3 {[%emt 0:00:29]} 32. bxc3 {[%emt 0:00:03]} Nc4 {[%emt 0:08:11]} 33. Nxc4 {[%emt 0:01:28]} dxc4 {[%emt 0:00:03]} 34. Nb7 {[%emt 0:00:17]} Kd7 {[%emt 0:00:53]} 35. Kd2 {[%emt 0:02:16]} Bxf3 {[%emt 0:00:06]} 36. Nxa5 {[%emt 0:00:06]} Bxg4 {[%emt 0:00:23]} 37. Nxc4 {[%emt 0:00:02]} Be6 {[%emt 0:00:48]} 38. Nb6+ {[%emt 0:00:51]} Kc7 {[%emt 0:00:20]} 39. a5 {[%emt 0:00:02]} Bb3 {[%emt 0:00:57]} 40. c4 {[%emt 0:00:07]} f5 {[%emt 0:00:25]} 41. d5 {[%emt 0:01:14]} cxd5 {[%emt 0:00:35]} 42. cxd5 {[%emt 0:00:02]} g4 {[%emt 0:00:30]} 43. d6+ {[%emt 0:00:20]} Kxd6 {[%emt 0:00:24]} 44. a6 {[%emt 0:00:08]} g3 {[%emt 0:00:34]} 45. Ke1 {[%emt 0:06:35]} Bc2 {[%emt 0:00:31]} 46. Nd5 {[%emt 0:00:14]} Be4 {[%emt 0:00:20]} 47. Nf6 {[%emt 0:00:18]} Kc6 {[%emt 0:00:36]} 48. Nxh7 {[%emt 0:00:37]} f4 {[%emt 0:00:07]} 49. Ng5 {[%emt 0:00:24]} Bd3 {[%emt 0:00:55]} 50. Ne6 {[%emt 0:00:55]} f3 {[%emt 0:00:28]} 51. Nd4+ {[%emt 0:00:38]} Kb6 {[%emt 0:00:02]} 52. Nxf3 {[%emt 0:00:09]} Kxa6 {[%emt 0:00:05]} 53. Kd2 {[%emt 0:01:09]} Bb1 {[%emt 0:01:24]} 54. Ke3 {[%emt 0:00:42]} Kb6 {[%emt 0:00:28]} 55. Kf4 {[%emt 0:00:36]} g2 {[%emt 0:00:16]} 56. Kg3 {[%emt 0:00:15]} Kc5 {[%emt 0:00:27]} 57. Kxg2 {[%emt 0:00:08]} Kd6 {[%emt 0:00:14]} 58. Kg3 {[%emt 0:00:18]} 1/2-1/2